bitfinex-derivatives/quotes_ETHF0:USTF0_20250905
["timestamp","ask_amount","ask_price","bid_price","bid_amount"]
[1757076125383,0.40649,4427.2,4426.5,1.4597]
[1757076125684,0.40649,4427.2,4426.3,0.344]
[1757076125685,0.4065,4427.2,4427.1,3.2078]
[1757076125990,0.40655,4426.6,4426.4,0.344]
[1757076126579,0.40664,4425.6,4425.4,3.2078]
[1757076126784,0.40662,4425.8,4425.5,0.75064]
[1757076127185,4.6693,4426.7,4425.6,0.40663]
[1757076127389,4.6693,4426.7,4425.7,0.40662]
[1757076127589,4.6693,4426.7,4426.0,3.2078]
[1757076127789,0.344,4427.2,4426.2,0.40658]
[1757076127983,3.2078,4427.3,4426.2,1.86628]
[1757076128184,0.40657,4426.4,4426.2,0.40658]
[1757076128392,0.40656,4426.5,4426.3,1.4597]
[1757076128686,0.40656,4426.5,4425.4,0.6001]
[1757076128687,0.40665,4425.5,4425.4,3.2078]
[1757076129085,0.40658,4426.3,4425.5,1.4597]
[1757076129285,0.40657,4426.4,4426.1,0.40659]
[1757076129482,3.2078,4426.8,4426.2,1.86628]
[1757076129686,0.40659,4426.2,4425.8,0.343]
[1757076129893,0.40659,4426.2,4425.9,1.4597]
[1757076130090,3.2078,4426.8,4426.1,0.40659]
[1757076130292,0.40659,4426.2,4426.0,1.4597]
[1757076130796,3.2078,4426.9,4425.9,3.2078]
[1757076131088,1.01633,4426.8,4425.7,3.5508]
[1757076131295,1.4615,4426.1,4425.3,0.40666]
[1757076131494,0.40666,4425.4,4425.2,3.2078]
[1757076131898,0.40666,4425.4,4425.2,4.6675]
[1757076132288,1.01667,4425.4,4424.9,0.343]
[1757076132484,1.4615,4425.0,4424.6,3.2078]
[1757076132691,0.40669,4425.1,4424.9,0.4067]
[1757076132889,0.40666,4425.4,4425.2,0.40667]
[1757076133084,2.47801,4426.0,4425.0,1.8027]
[1757076133288,0.40668,4425.2,4425.0,0.343]
[1757076133489,1.4615,4424.9,4424.8,3.2078]
[1757076133796,1.4615,4424.9,4424.5,0.343]
[1757076133797,0.40673,4424.6,4424.5,0.343]
[1757076133987,0.40673,4424.6,4424.1,3.2078]
[1757076133988,1.01685,4424.6,4424.1,3.2078]
[1757076134193,0.40677,4424.3,4424.2,1.4597]
[1757076134990,0.40677,4424.3,4424.1,3.2078]
[1757076135289,4.6693,4426.0,4424.9,1.4597]
[1757076135494,1.01667,4425.4,4424.7,0.342]
[1757076135690,1.01668,4425.3,4424.3,1.4597]
[1757076135895,1.01674,4425.0,4424.3,1.86646]
[1757076136090,0.40675,4424.5,4424.3,1.4597]
[1757076136286,0.40675,4424.5,4424.3,0.40676]
[1757076136492,0.40676,4424.3,4424.2,0.342]
[1757076137485,0.40676,4424.3,4424.2,1.8017]
[1757076137896,1.86826,4424.3,4424.2,0.342]
[1757076138092,0.40676,4424.3,4424.1,3.2078]
[1757076138291,0.40682,4423.6,4423.5,3.2078]
[1757076138487,1.5315,4423.6,4422.9,3.2078]
[1757076138691,0.342,4423.7,4422.9,3.2078]
[1757076138891,1.5315,4423.6,4422.4,0.342]
[1757076139094,0.40694,4422.3,4422.2,3.2078]
[1757076139299,0.40699,4421.8,4421.7,3.2078]
[1757076139595,3.2078,4422.7,4421.7,5.0481]
[1757076139787,3.2078,4422.7,4421.7,3.5488]
[1757076139990,0.40696,4422.1,4421.7,3.5488]
[1757076140195,0.40696,4422.1,4422.0,1.4993]
[1757076140390,1.5315,4422.5,4421.8,0.341]
[1757076140591,1.5315,4422.5,4421.9,1.4993]
[1757076140792,0.40694,4422.4,4422.2,3.2078]
[1757076141094,0.40689,4423.0,4422.3,3.2078]
[1757076141395,0.40691,4422.7,4422.5,1.4993]
[1757076141594,0.40689,4422.9,4422.5,1.90622]
[1757076141792,1.5315,4423.3,4422.5,1.4993]
[1757076141994,0.40691,4422.7,4422.4,0.74793]
[1757076142194,1.5315,4423.3,4422.4,1.8403]
[1757076142395,1.5315,4423.3,4422.5,1.90622]
[1757076142585,0.40685,4423.4,4422.5,1.7254]
[1757076142788,3.2078,4423.5,4422.8,1.4993]
[1757076142992,1.01717,4423.2,4422.6,0.341]
[1757076143192,0.40691,4422.7,4422.6,0.341]
[1757076143594,3.5488,4423.5,4422.6,0.341]
[1757076143595,3.2078,4423.5,4422.6,0.341]
[1757076143795,0.40691,4422.7,4422.6,0.341]
[1757076143994,1.5315,4423.4,4422.6,0.341]
[1757076144195,1.5315,4423.4,4422.8,3.2078]
[1757076144390,3.2078,4423.5,4423.1,0.40687]
[1757076144599,0.6224,4424.4,4423.4,1.4993]
[1757076144897,1.5315,4424.2,4422.6,4.7071]
[1757076145093,0.40686,4423.3,4422.9,0.40688]
[1757076145286,0.40687,4423.2,4423.0,0.34]
[1757076145493,1.5315,4423.1,4423.0,0.34]
[1757076145694,1.5315,4423.8,4423.0,0.34]
[1757076145891,0.4069,4422.8,4422.6,3.2078]
[1757076146099,0.40694,4422.4,4422.1,1.90625]
[1757076146393,4.7393,4424.1,4422.8,1.4993]
[1757076146596,4.7393,4424.1,4423.1,1.90616]
[1757076146597,0.40685,4423.3,4423.1,1.90616]
[1757076146800,3.2078,4425.3,4423.9,1.4993]
[1757076147102,1.5315,4425.4,4424.4,1.90604]
[1757076147297,1.5315,4425.4,4424.5,0.34]
[1757076147689,1.5315,4425.4,4424.6,0.34]
[1757076148693,3.2078,4425.8,4424.9,5.1138]
[1757076148895,1.5315,4425.7,4425.0,0.34]
[1757076149096,0.6224,4425.6,4425.0,0.74669]
[1757076149307,1.5315,4425.7,4425.0,0.74669]
[1757076149601,1.5315,4425.7,4424.9,3.2078]
[1757076149802,0.6224,4425.6,4424.6,0.339]
[1757076150002,1.5315,4425.5,4424.6,0.339]
[1757076150198,1.5315,4425.5,4424.9,0.4067]
[1757076150393,3.2078,4425.8,4425.1,1.4993]
[1757076150598,1.5315,4426.6,4425.7,4.7071]
[1757076150794,1.5315,4426.6,4425.8,0.339]
[1757076150998,1.5315,4426.6,4426.0,0.4066]
[1757076151195,1.5315,4426.6,4425.8,0.339]
[1757076151390,3.2078,4426.7,4425.2,3.2078]
[1757076151608,1.5315,4426.6,4425.5,0.339]
[1757076152402,1.5315,4426.6,4425.3,0.40666]
[1757076152597,1.5315,4426.5,4425.4,0.339]
[1757076153195,3.2078,4426.7,4425.8,3.2078]
[1757076153399,1.5315,4426.6,4425.9,0.339]
[1757076153601,1.5315,4426.6,4425.9,0.7456]
[1757076153801,1.5315,4426.6,4426.0,0.4066]
[1757076154002,3.2078,4426.7,4426.0,1.4993]
[1757076154203,3.2078,4426.7,4426.2,0.40658]
[1757076154397,4.7393,4426.7,4426.3,1.8373]
[1757076154597,3.2078,4426.7,4426.6,1.4993]
[1757076154807,1.5315,4428.0,4426.6,4.0]
[1757076155111,0.40644,4427.8,4427.6,1.4993]
[1757076155305,1.5315,4429.3,4427.8,1.4993]
[1757076155505,1.01567,4429.7,4428.0,1.4993]
[1757076155506,1.5315,4428.8,4428.0,1.4993]
[1757076155805,1.5315,4428.8,4428.1,0.338]
[1757076156006,1.5315,4428.8,4428.2,0.40639]
[1757076156204,1.5315,4428.8,4428.1,0.338]
[1757076156404,1.5315,4428.8,4428.1,0.7444]
[1757076156803,3.2078,4429.1,4428.1,0.7444]
[1757076157005,1.7015,4428.9,4428.1,0.7444]
[1757076157199,0.17,4428.9,4428.5,4.7071]
[1757076157405,0.17,4428.9,4428.6,0.338]
[1757076157605,0.17,4428.9,4427.9,3.2078]
[1757076157906,0.6224,4428.6,4427.9,0.40642]
[1757076158097,0.17,4428.9,4428.4,3.2078]
[1757076158304,3.2078,4429.8,4428.8,1.4993]
[1757076158611,1.5315,4429.7,4429.2,3.2078]
[1757076158805,1.5315,4429.7,4429.1,3.2078]
[1757076159002,1.5315,4429.7,4429.2,0.337]
[1757076159203,1.5315,4429.7,4429.1,3.2078]
[1757076159402,2.1539,4429.2,4429.1,0.337]
[1757076159603,1.5315,4429.2,4429.1,0.337]
[1757076159798,2.1539,4429.2,4429.1,0.337]
[1757076160406,1.5315,4430.2,4429.2,1.4993]
[1757076160603,1.5315,4429.7,4429.1,0.337]
[1757076160800,4.7393,4429.7,4429.1,0.337]
[1757076161210,1.5315,4429.7,4429.0,0.337]
[1757076161406,3.8302,4429.8,4428.6,3.2078]
[1757076161607,1.5315,4429.7,4428.8,0.337]
[1757076162107,3.2078,4428.9,4427.6,0.337]
[1757076162306,1.5315,4428.8,4427.7,0.40645]
[1757076162507,1.5315,4428.8,4427.6,0.337]
[1757076162709,1.5315,4428.8,4427.7,0.40644]
[1757076162908,1.5315,4428.8,4427.9,0.40643]
[1757076163115,0.40643,4428.0,4427.7,0.40644]
[1757076163314,0.40643,4427.9,4427.6,0.337]
[1757076163509,0.4064,4428.3,4427.6,1.8363]
[1757076163909,0.4064,4428.3,4428.0,1.90571]
[1757076164208,3.2078,4428.9,4428.1,0.336]
[1757076164407,1.9379,4428.3,4428.1,0.336]
[1757076164613,3.2078,4428.9,4428.1,0.7424]
[1757076164916,0.4064,4428.3,4428.1,0.7424]
[1757076165211,0.40638,4428.5,4428.2,0.4064]
[1757076165510,0.40639,4428.4,4428.1,0.74241]
[1757076165717,4.7393,4428.9,4428.1,0.74241]
[1757076165718,1.5315,4428.8,4428.4,0.40638]
[1757076165911,3.2078,4428.9,4428.6,1.4993]
[1757076166114,3.2078,4428.9,4428.7,0.336]
[1757076166115,0.40634,4428.9,4428.7,0.336]
[1757076166316,1.5315,4428.8,4428.0,1.01606]
[1757076166513,0.40637,4428.6,4428.1,0.336]
[1757076166718,1.5315,4428.9,4428.2,0.336]
[1757076167018,1.9379,4428.3,4428.2,0.336]
[1757076168215,0.40648,4427.4,4427.2,3.61429]
[1757076168422,1.5281,4427.3,4427.2,3.2078]
[1757076168608,1.5281,4427.3,4427.2,3.5428]
[1757076169214,1.5281,4427.3,4427.2,0.335]
[1757076169720,0.40658,4426.2,4426.1,34.3798]
[1757076169918,0.6169,4427.0,4426.1,34.7148]
[1757076170216,3.2078,4427.2,4426.2,1.74231]
[1757076170415,1.5172,4427.2,4426.4,1.5164]
[1757076170619,1.5172,4427.2,4426.3,4.0]
[1757076170620,0.40644,4427.9,4427.1,3.2078]
[1757076170913,0.40644,4427.9,4426.8,1.01632]
[1757076170914,2.145,4428.0,4427.6,3.61425]
[1757076171112,1.5281,4427.9,4427.8,0.40643]
[1757076171314,1.93453,4427.9,4427.7,0.335]
[1757076171515,0.40643,4427.9,4427.7,0.335]
[1757076171712,1.5281,4427.8,4427.7,0.335]
[1757076172214,0.40641,4428.1,4427.9,0.40643]
[1757076172518,1.5281,4428.1,4427.9,0.40643]
[1757076172720,1.5281,4428.9,4427.8,1.0161]
[1757076173022,1.93446,4428.7,4428.6,3.2078]
[1757076173214,1.93446,4428.7,4428.6,3.5418]
[1757076175422,1.5281,4428.7,4428.6,3.5418]
[1757076176013,1.5281,4428.7,4428.6,0.334]
[1757076176524,1.9345,4428.2,4428.1,3.5418]
[1757076176825,1.5281,4428.2,4428.1,3.5418]
[1757076177118,2.145,4428.5,4428.1,3.94821]
[1757076177323,1.5281,4428.5,4428.3,0.40639]
[1757076177525,2.55138,4428.5,4428.4,0.334]
[1757076178524,2.145,4428.5,4428.1,3.2078]
[1757076178718,2.55142,4428.0,4427.9,0.333]
[1757076179425,2.55142,4428.0,4427.6,3.2078]
[1757076179426,2.145,4428.0,4427.6,3.2078]
[1757076179625,2.145,4428.0,4426.1,31.172]
[1757076179626,1.5281,4427.4,4426.6,3.2078]
[1757076179926,0.40651,4427.0,4426.8,5.13073]
[1757076180130,0.40651,4427.0,4426.9,1.8494]
[1757076180322,1.01613,4427.7,4426.9,0.333]
[1757076180523,4.22391,4427.8,4426.9,0.333]
[1757076180828,0.333,4428.9,4427.6,1.5164]
[1757076181019,0.40642,4428.1,4427.8,3.61423]
[1757076181223,0.40641,4428.2,4428.0,1.5164]
[1757076181424,0.40641,4428.2,4427.9,0.333]
[1757076181425,1.5281,4426.7,4426.1,3.2078]
[1757076181623,4.7359,4426.7,4425.7,1.5164]
[1757076181823,4.7359,4426.7,4426.0,0.4066]
[1757076181824,3.2078,4426.7,4426.0,0.4066]
[1757076182019,3.2078,4426.7,4426.1,0.333]
[1757076182226,1.5281,4427.6,4426.7,1.92293]
[1757076182427,1.5281,4427.6,4426.9,0.40652]
[1757076182627,1.5281,4427.6,4426.8,0.73952]
[1757076182828,1.5281,4427.6,4426.9,0.40652]
[1757076183128,3.2078,4427.8,4427.3,0.40648]
[1757076183333,0.6169,4428.6,4427.9,1.5164]
[1757076183530,1.5281,4428.8,4427.9,1.5164]
[1757076183531,0.40639,4428.4,4428.2,1.5164]
[1757076183727,0.4064,4428.2,4428.0,0.332]
[1757076184024,0.4064,4428.3,4428.1,3.61421]
[1757076184231,0.40638,4428.5,4428.1,3.2078]
[1757076184431,0.40638,4428.5,4428.2,1.5164]
[1757076184631,3.2078,4430.6,4428.4,1.5164]
[1757076184931,0.40611,4431.4,4430.8,0.40616]
[1757076185122,3.2078,4432.2,4431.0,1.5164]
[1757076185429,3.2078,4434.5,4433.6,1.5164]
[1757076185631,1.93399,4433.8,4433.7,0.332]
[1757076185935,2.145,4435.2,4433.9,1.5164]
[1757076186133,1.5281,4435.1,4434.4,3.2078]
[1757076186431,3.2078,4435.1,4434.5,0.332]
[1757076186727,1.93391,4434.7,4434.5,0.332]
[1757076186932,1.5281,4434.6,4433.9,3.2078]
[1757076187128,3.2078,4435.0,4433.9,3.2078]
[1757076187332,0.40581,4434.7,4434.0,0.332]
[1757076187532,1.5281,4434.9,4433.9,3.2078]
[1757076187726,0.40584,4434.4,4434.0,0.331]
[1757076187925,1.5281,4434.1,4434.0,0.331]
[1757076188125,1.5281,4434.2,4433.4,31.17]
[1757076188433,1.93408,4432.8,4432.7,3.2078]
[1757076188628,0.40598,4432.8,4432.7,3.2078]
[1757076188823,0.40598,4432.8,4432.6,0.331]
[1757076189031,1.5281,4432.7,4431.2,0.331]
[1757076189231,1.5281,4432.1,4431.4,3.2078]
[1757076189734,3.2078,4432.5,4431.4,3.2078]
[1757076190134,3.2078,4431.9,4431.3,0.331]
[1757076190333,1.5281,4431.8,4431.3,0.331]
[1757076190638,1.5281,4431.7,4431.3,0.331]
[1757076190930,1.5281,4431.7,4431.3,0.73712]
[1757076191230,3.2078,4431.9,4431.3,0.331]
[1757076191530,0.6169,4431.2,4430.4,3.2078]
[1757076191734,1.5281,4431.1,4430.4,3.2078]
[1757076192528,1.5281,4430.8,4430.2,0.331]
[1757076192833,0.6169,4431.2,4430.2,3.5378]
[1757076193023,1.5281,4431.4,4430.8,0.40616]
[1757076193229,1.5281,4431.6,4430.9,0.33]
[1757076193424,1.5281,4431.6,4431.0,0.33]
[1757076193831,1.5281,4431.1,4431.0,0.33]
[1757076194529,3.2078,4431.2,4431.0,0.33]
[1757076194729,3.2078,4431.2,4431.1,0.40614]
[1757076194929,1.5281,4431.5,4431.1,0.40614]
[1757076195129,3.2078,4431.7,4431.1,1.5164]
[1757076195330,1.5281,4431.6,4431.0,0.33]
[1757076196135,1.5281,4431.6,4430.8,0.33]
[1757076197035,1.93414,4432.2,4431.7,0.40607]
[1757076197235,0.40604,4432.2,4431.8,0.40607]
[1757076197436,1.93414,4432.2,4431.8,0.40607]
[1757076197630,3.2078,4432.6,4431.7,3.5368]
[1757076197837,0.40605,4432.1,4431.7,3.94287]
[1757076198033,0.40606,4431.9,4431.7,3.5368]
[1757076198337,1.4848,4431.8,4431.7,0.329]
[1757076198636,3.61376,4433.0,4431.9,1.5608]
[1757076198837,3.2078,4433.0,4432.5,0.406]
[1757076199035,0.40593,4433.4,4432.8,0.40598]
[1757076199230,0.40594,4433.2,4432.6,0.329]
[1757076199431,0.6169,4433.6,4432.8,0.40597]
[1757076199628,1.4848,4433.4,4432.9,3.2078]
[1757076199834,0.40589,4433.8,4433.3,0.40593]
[1757076200032,3.5368,4434.3,4432.9,3.2078]
[1757076200033,1.4848,4434.1,4433.4,0.329]
[1757076200231,3.2078,4434.3,4434.1,0.40586]
[1757076200426,1.4848,4434.2,4434.1,0.40586]
[1757076200628,0.40579,4434.9,4434.4,0.40583]
[1757076200833,3.61358,4435.1,4434.7,0.4058]
[1757076201132,1.4848,4435.0,4434.9,0.40578]
[1757076201332,1.4848,4435.0,4434.9,0.329]
[1757076201536,3.2078,4435.1,4434.9,0.73478]
[1757076201931,1.4848,4435.6,4434.9,3.5368]
[1757076202332,3.2078,4435.4,4434.9,0.73478]
[1757076202536,3.2078,4435.4,4434.4,3.2078]
[1757076202537,1.4848,4435.1,4434.4,3.5358]
[1757076202937,1.4848,4435.1,4435.0,0.40578]
[1757076203239,0.5965,4435.9,4435.0,3.5358]
[1757076203440,1.4848,4435.8,4435.4,0.40574]
[1757076203637,1.4848,4435.8,4435.5,0.328]
[1757076204433,3.2078,4435.8,4435.5,0.328]
[1757076204642,1.4848,4435.6,4435.5,0.328]
[1757076204838,1.4848,4435.6,4435.2,0.328]
[1757076205034,0.5965,4435.2,4434.6,0.328]
[1757076205238,1.4848,4435.1,4434.6,0.328]
[1757076206133,1.4848,4435.1,4434.2,0.328]
[1757076206636,1.4848,4434.4,4434.2,0.328]
[1757076206841,4.6926,4435.1,4434.2,0.73385]
[1757076207041,4.6926,4435.1,4434.2,0.328]
[1757076207441,4.6926,4435.1,4434.2,0.73385]
[1757076207836,1.4848,4435.0,4434.3,0.327]
[1757076208032,1.4848,4435.0,4434.4,0.40583]
[1757076208241,2.0813,4435.9,4434.8,3.2078]
[1757076208437,2.0813,4435.9,4434.9,0.327]
[1757076208833,1.4848,4435.9,4435.3,0.40575]
[1757076209037,1.4848,4435.9,4435.4,0.327]
[1757076209243,1.89049,4436.0,4435.4,0.327]
[1757076209444,0.40569,4436.0,4435.5,0.40573]
[1757076209644,1.4848,4436.4,4436.1,0.40568]
[1757076209841,1.4848,4436.4,4436.0,0.327]
[1757076210040,1.4848,4436.4,4436.2,0.40567]
[1757076210438,1.4848,4436.4,4436.0,0.327]
[1757076210644,1.4848,4436.8,4436.6,0.40563]
[1757076211041,1.4848,4437.0,4436.8,0.40561]
[1757076211242,1.89038,4437.2,4436.5,3.5348]
[1757076211442,0.5965,4436.6,4436.5,3.2078]
[1757076211646,2.0813,4436.6,4436.5,0.326]
[1757076212040,1.4848,4436.6,4436.5,0.326]
[1757076212543,1.4848,4437.2,4436.5,0.326]
[1757076212745,2.0813,4437.3,4436.5,0.326]
[1757076212940,4.6926,4437.5,4436.6,1.5608]
[1757076213245,5.09815,4437.5,4437.0,0.40559]
[1757076213445,1.4848,4437.4,4437.1,0.326]
[1757076213647,3.2078,4437.5,4437.1,0.73158]
[1757076213844,2.0813,4438.0,4437.1,0.326]
[1757076214146,1.4848,4437.8,4437.2,0.326]
[1757076214340,0.40553,4437.8,4437.2,0.326]
[1757076214546,1.4848,4437.8,4436.5,3.2078]
[1757076214743,1.4848,4437.5,4436.5,3.2078]
[1757076214941,1.4848,4437.0,4436.6,0.73163]
[1757076215140,1.4848,4436.9,4436.8,0.40561]
[1757076215337,1.89041,4436.9,4436.8,0.326]
[1757076215541,1.4848,4437.5,4436.8,0.326]
[1757076215947,2.49871,4437.4,4436.8,0.326]
[1757076216149,2.49871,4437.4,4435.5,1.01432]
[1757076216150,0.40565,4436.5,4436.0,3.61348]
[1757076216344,0.40567,4436.2,4436.1,0.326]
[1757076216750,1.89047,4436.2,4436.1,0.326]
[1757076216946,1.4848,4436.2,4436.1,0.326]
[1757076217949,3.2078,4436.9,4436.5,0.40564]
[1757076218144,3.2078,4436.9,4436.8,0.40561]
[1757076218345,0.0011328,4437.2,4437.0,0.40559]
[1757076218541,0.0011328,4437.2,4437.1,0.325]
[1757076218748,1.4848,4437.1,4436.8,3.2078]
[1757076218943,1.4848,4437.1,4436.4,1.4135]
[1757076218944,1.4848,4436.9,4436.3,3.2078]
[1757076219143,0.5965,4436.4,4436.2,0.40567]
[1757076219346,1.4848,4436.9,4436.8,0.40561]
[1757076220247,1.4859328,4437.2,4436.8,3.2078]
[1757076220444,1.4848,4437.1,4437.0,0.4056]
[1757076220647,0.0011328,4437.2,4437.0,0.4056]
[1757076220850,0.0011328,4437.2,4437.1,0.325]
[1757076221250,0.0011328,4437.2,4437.1,1.7385]
[1757076221641,0.0011328,4437.2,4437.1,0.325]
[1757076222247,1.4848,4437.1,4437.0,0.4056]
[1757076222555,1.4848,4437.1,4437.0,0.7296]
[1757076223358,1.4848,4437.1,4437.0,0.324]
[1757076223853,1.0021,4437.0,4436.4,0.40564]
[1757076224053,1.4848,4436.3,4435.9,0.40569]
[1757076224355,2.0813,4435.8,4435.7,3.61352]
[1757076224552,2.0813,4435.8,4435.5,0.324]
[1757076224856,1.4848,4435.7,4435.5,0.324]
[1757076225056,1.4848,4435.7,4435.6,0.40572]
[1757076225453,0.5965,4435.2,4435.0,3.2078]
[1757076225650,1.4848,4435.1,4434.7,0.324]
[1757076225849,3.2078,4435.2,4434.7,0.324]
[1757076226047,1.4848,4434.9,4434.7,0.324]
[1757076226252,1.4848,4434.8,4434.7,0.324]
[1757076226554,1.4848,4435.1,4434.7,0.324]
[1757076226749,1.4848,4434.8,4434.0,3.2078]
[1757076226948,3.2078,4434.1,4433.7,0.323]
[1757076227147,3.2078,4434.1,4434.0,1.5608]
[1757076227350,1.8906,4434.8,4434.0,1.5608]
[1757076227556,3.2078,4434.4,4434.1,0.40586]
[1757076227854,3.2078,4434.4,4434.3,0.40584]
[1757076228059,1.4848,4434.9,4434.4,0.40583]
[1757076228261,1.4848,4434.9,4434.5,0.40582]
[1757076228551,1.4848,4434.9,4434.7,0.4058]
[1757076228758,3.2078,4435.0,4434.9,1.5098]
[1757076229155,1.4907,4434.9,4434.8,0.323]
[1757076229351,1.4907,4434.9,4434.2,0.323]
[1757076229558,1.4907,4434.3,4434.2,0.323]
[1757076230050,3.2078,4434.4,4434.2,1.8328]
[1757076230255,1.4907,4434.3,4434.2,0.323]
[1757076230954,1.4907,4434.2,4433.8,0.40589]
[1757076231155,3.2078,4434.4,4434.2,0.40585]
[1757076231361,3.2078,4434.4,4433.8,0.40588]
[1757076231551,1.4907,4433.8,4433.3,31.111]
[1757076231754,3.2078,4433.4,4432.2,2.2299]
[1757076231957,3.2078,4432.4,4431.6,2.4527]
[1757076232258,3.5298,4432.9,4432.2,2.1307]
[1757076232454,3.61378,4432.9,4432.2,2.85873]
[1757076232655,3.2078,4432.9,4432.2,2.4527]
[1757076232966,3.2078,4432.9,4432.6,1.5098]
[1757076233254,1.33697,4432.8,4431.6,0.6209]
[1757076233462,3.2078,4432.1,4431.3,1.8318]
[1757076233662,3.2078,4432.1,4431.5,0.40609]
[1757076233958,3.2078,4432.1,4431.7,1.5098]
[1757076234155,3.2078,4432.1,4431.7,1.91588]
[1757076234355,3.2078,4432.1,4432.0,1.5098]
[1757076236162,3.2078,4432.1,4431.7,0.72808]
[1757076236365,3.2078,4432.1,4431.8,1.5098]
[1757076236862,0.40606,4432.0,4431.7,0.322]
[1757076237063,3.2078,4432.1,4431.7,0.322]
[1757076237459,3.2078,4432.1,4431.7,0.72808]
[1757076237863,1.4907,4434.5,4434.3,0.40584]
[1757076238161,2.0911,4434.5,4433.9,3.2078]
[1757076238465,0.6004,4434.0,4433.5,40.8]
[1757076238665,1.4907,4433.9,4433.4,3.5288]
[1757076238857,1.4907,4433.9,4433.6,0.4059]
[1757076239064,1.4907,4433.9,4433.4,44.73472]
[1757076239265,1.4907,4433.9,4433.4,3.5288]
[1757076239566,0.6004,4434.0,4433.4,3.5288]
[1757076239960,0.6004,4434.0,4433.6,0.4059]
[1757076240164,0.6004,4433.4,4433.3,3.2078]
[1757076240357,0.6004,4433.4,4433.3,3.5288]
[1757076240561,2.0911,4433.4,4433.3,3.5288]
[1757076240761,2.0911,4433.4,4433.3,3.2078]
[1757076241162,2.0911,4433.4,4433.3,0.321]
[1757076241463,4.6004,4433.4,4432.8,3.2078]
[1757076241668,0.6004,4432.8,4432.5,0.321]
[1757076242066,1.4907,4432.7,4432.2,3.2078]
[1757076242264,0.6004,4432.8,4432.2,3.2078]
[1757076242470,1.4907,4432.7,4432.3,0.321]
[1757076243169,2.0911,4432.8,4432.2,3.5288]
[1757076243564,1.8117,4433.3,4432.7,0.40598]
[1757076243968,1.4907,4433.2,4432.6,3.2078]
[1757076244367,1.4907,4433.3,4432.7,0.32]
[1757076244570,1.4907,4433.3,4433.2,3.2078]
[1757076244868,3.2078,4434.3,4433.6,0.4059]
[1757076245171,0.32,4434.9,4433.9,0.40588]
[1757076245372,0.6004,4435.2,4434.8,0.40579]
[1757076245570,1.4907,4435.1,4434.9,3.2078]
[1757076245874,0.6004,4437.0,4434.9,3.2078]
[1757076245875,2.0911,4436.4,4435.0,0.32]
[1757076246062,1.4907,4436.1,4435.9,3.2078]
[1757076246260,0.40578,4435.1,4434.8,3.2078]
[1757076246465,0.40578,4435.1,4434.0,0.7689]
[1757076246466,1.4907,4435.1,4434.6,0.32]
[1757076246668,1.4907,4435.4,4434.8,3.2078]
[1757076246862,1.4907,4435.7,4434.7,3.2078]
[1757076247068,1.4907,4434.8,4433.8,3.2078]
[1757076247262,4.6985,4434.9,4433.9,40.8]
[1757076247467,3.2078,4434.9,4434.5,0.40582]
[1757076247668,1.4907,4435.5,4434.9,0.40579]
[1757076247962,0.32,4435.7,4434.8,0.32]
[1757076248166,1.4907,4435.6,4434.8,0.32]
[1757076248570,0.4058,4434.9,4434.5,0.32]
[1757076248874,1.8097,4435.1,4434.5,0.32]
[1757076249172,1.4907,4435.0,4434.5,3.2078]
[1757076249370,1.4907,4435.0,4434.6,0.40582]
[1757076249571,1.89647,4435.2,4434.6,0.40582]
[1757076249777,1.4907,4435.4,4434.5,0.319]
[1757076249983,0.40581,4434.7,4434.5,0.319]
[1757076250182,0.6004,4435.2,4434.5,0.319]
[1757076250478,0.40587,4434.1,4434.0,3.2078]
[1757076250678,1.4907,4433.9,4433.6,0.4059]
[1757076250879,0.40588,4434.0,4433.6,0.4059]
[1757076251087,0.40588,4434.0,4433.6,0.319]
[1757076251383,1.4907,4434.5,4433.8,0.40589]
[1757076251585,1.4907,4434.2,4433.8,0.40589]
[1757076251786,1.4907,4434.5,4434.1,0.40586]
[1757076252086,1.4907,4434.5,4434.1,2.23466]
[1757076252284,1.4907,4435.1,4434.3,0.40585]
[1757076252485,1.4907,4434.8,4434.5,0.40582]
[1757076252684,1.4907,4434.8,4434.3,0.40584]
[1757076252887,0.4058,4434.9,4434.4,0.40584]
[1757076253081,1.4907,4434.8,4434.5,0.40583]
[1757076253276,1.4907,4434.6,4434.1,1.8288]
[1757076253477,0.6004,4435.2,4434.3,0.40584]
[1757076253686,1.4907,4434.7,4434.4,0.40583]
[1757076253882,0.40578,4435.1,4434.6,0.40581]
[1757076254077,3.2078,4435.3,4434.9,0.40579]
[1757076254282,0.40577,4435.2,4434.8,0.4058]
[1757076254488,1.4907,4435.0,4434.7,0.40581]
[1757076254683,1.4907,4435.0,4434.6,0.40581]
[1757076254884,3.2078,4435.3,4434.6,1.91562]
[1757076255085,0.40581,4434.8,4434.3,0.40585]
[1757076255288,1.4907,4434.6,4434.3,0.40584]
[1757076255683,1.4907,4434.4,4434.0,0.318]
[1757076255989,1.4907,4434.8,4433.7,0.4059]
[1757076256179,1.4907,4434.2,4433.8,0.72389]
[1757076256378,0.40585,4434.3,4433.9,0.40588]
[1757076256590,1.4907,4434.2,4434.0,0.40587]
[1757076256787,1.4907,4434.7,4434.2,1.91566]